Cogmind - Beta 17.1 @@@ ROGUE MODE // 2026.09.12 @ 22:26:08 Player: zed Result: Destroyed by C-40 Crusher with Compactor Performance ------------- Evolutions (3) 1500 Regions Visited (7) 1400 Robots Destroyed (47) 235 Value Destroyed (1353) 1353 Prototype IDs (1) 20 Alien Tech Used (0) 0 Bonus (300) 300 TOTAL SCORE: 4808 Bonus ------- Aligned with FarCom 300 Cogmind --------- Core Integrity 0/700 Matter 52/300 Energy 100/100 System Corruption 46% Temperature Cool (0) Movement Core (50) Location -7/Waste Parts ------- > --- POWER (1) -------- (None) > --- PROPULSION (4) --- (None) > --- UTILITY (5) ------ (None) > --- WEAPON (3) ------- (None) > --- INVENTORY (5) ---- Launcher Guidance Computer Remote Datajack Peak State ------------ > --- POWER ------------ Improved Deuterium Engine > --- PROPULSION ------- Light Treads Armored Treads Medium Treads > --- UTILITY ---------- High-capacity Storage Unit Advanced Visual Processing Unit Improved Signal Interpreter Hacking Suite Hacking Suite > --- WEAPON ----------- AWS/Autocannon > --- INVENTORY -------- Micro Nuclear Core Improved Heat Sink Improved Cooling System Improved Sensor Array Launcher Guidance Computer Armor Integrity Analyzer Hardened Heavy Armor Plating Improved Field Recycling Unit Pulse Rifle Gatling Laser Plasma Cannon Assault Cannon Rocket Launcher Rocket Launcher Remote Datajack Axe [Rating: 60] Favorites ----------- Power Ion Engine Engine Ion Engine Power Core Micro Nuclear Core Propulsion Light Treads Treads Light Treads Leg Aluminum Leg Utility Visual Processing Unit Device Improved Heat Sink Storage Large Storage Unit Processor Visual Processing Unit Hackware Hacking Suite Protection Reactive Plating Weapon Light Cannon Energy Gun Pulse Rifle Energy Cannon Plasma Cannon Ballistic Gun Assault Rifle Ballistic Cannon Light Cannon Launcher Grenade Launcher Special Weapon Remote Datajack Slashing Weapon Axe Build | -11 -10 -10 -10 -9 -8 -7 -7 ------- Run | Yrd Mat Min Exi Min Mat Fac Was Slots Evolved 6 | . . . . . 4 2 . Power . | . . . . . . . . Propulsion 2 | . . . . . 2 . . Utility 3 | . . . . . 1 2 . Weapon 1 | . . . . . 1 . . Parts Attached 40 | 6 7 . . . 11 13 3 Power 4 | 1 1 . . . . 2 . Engine 3 | 1 1 . . . . 1 . Core 1 | . . . . . . 1 . Reactor . | . . . . . . . . Propulsion 8 | 2 1 . . . 4 1 . Treads 6 | 2 1 . . . 2 1 . Leg 2 | . . . . . 2 . . Wheel . | . . . . . . . . Hover . | . . . . . . . . Flight . | . . . . . . . . Utility 12 | 1 2 . . . 3 5 1 Device 1 | . . . . . 1 . . Storage 3 | 1 1 . . . . 1 . Processor 3 | . 1 . . . 1 1 . Hackware 2 | . . . . . . 2 . Protection 3 | . . . . . 1 1 1 Artifact . | . . . . . . . . Weapon 16 | 2 3 . . . 4 5 2 Energy Gun 2 | . . . . . 1 . 1 Energy Cannon 1 | . . . . . . 1 . Ballistic Gun 3 | 2 . . . . 1 . . Ballistic Cannon 5 | . 2 . . . 2 1 . Launcher 3 | . 1 . . . . 1 1 Special Weapon 1 | . . . . . . 1 . Impact Weapon . | . . . . . . . . Slashing Weapon 1 | . . . . . . 1 . Piercing Weapon . | . . . . . . . . Special Melee Weapon . | . . . . . . . . Unidentified Prototypes 1 | . . . . . 1 . . Parts Lost 15 | . . . . . . 1 14 Power 2 | . . . . . . . 2 Propulsion 3 | . . . . . . 1 2 Utility 5 | . . . . . . . 5 Weapon 5 | . . . . . . . 5 Highest Loss Streak 14 | . . . . . . 1 14 To Critical Strikes 1 | . . . . . . . 1 Average Backups 12 | 1 7 14 13 12 12 13 11 Power 1 | . 1 2 2 2 2 1 . Propulsion . | . 2 2 2 2 . . . Utility 5 | . 1 6 5 5 5 6 6 Weapon 4 | . 2 4 4 3 4 5 3 Tool/Special . | . . . . . . . . Unused Backups 22 | . 7 . 1 2 3 3 6 Power 2 | . 1 . . . . 1 . Propulsion 4 | . 4 . . . . . . Utility 13 | . 1 . 1 1 3 1 6 Weapon 3 | . 1 . . 1 . 1 . Tool/Special . | . . . . . . . . Average Slot Usage (%) 94 | . 94 100 100 100 91 92 66 Engine 10 | . 14 14 14 14 9 6 4 Treads 26 | . 28 28 28 28 26 25 16 Storage 10 | . 14 14 14 14 9 7 5 Processor 12 | . 9 14 14 14 9 15 9 Hackware 4 | . . . . . . 12 8 Energy Gun 2 | . . . . . 7 3 5 Ballistic Gun 2 | . 14 . . . 4 . . Ballistic Cannon 11 | . 13 25 14 14 12 6 . Launcher 5 | . . 2 14 14 . 3 . Slashing Weapon 1 | . . . . . . 4 3 Peak Build Rating 60 | 6 10 10 12 12 44 60 43 Average Rating 21 | 4 7 10 11 12 23 35 35 On Entrance 14 | . 6 10 10 12 12 24 43 Avg Prop Armor Cover (%) 5 | . . . . . 5 . . Naked Turns 12 | . . . . . . . 12 Heaviest Build 110 | 12 31 31 31 31 47 110 75 Greatest Support 88 | 40 40 40 40 40 83 88 68 Greatest Overweight (x) 24 | . . . . . 2 1 24 Average Overweight (x) . | . . . . . . . . Largest Inventory Capacity 20 | 8 15 15 15 15 15 20 20 Average Capacity 14 | 7 9 15 15 15 15 15 16 Most Carried 20 | 4 14 14 15 15 15 20 18 Average Carried 13 | 1 7 14 14 14 14 15 14 Final Capacity 20 | 8 15 15 15 15 15 20 5 Final Carried 18 | 4 14 14 15 15 15 18 2 Class Distribution -------------------- 53% | Mutant 22% | Hacker-Mutant 10% | Scavenger-Skirmisher 8% | Skirmisher 5% | Hacker-Skirmisher Dominant Class ---------------- Mutant | -10/Materials Mutant | -10/Mines Mutant | -10/Exiles Mutant | -9/Mines Scavenger-Skirmisher | -8/Materials Hacker-Mutant | -7/Factory Hacker-Mutant | -7/Waste Resources | -11 -10 -10 -10 -9 -8 -7 -7 ----------- Run | Yrd Mat Min Exi Min Mat Fac Was Matter Collected 1621 | 189 405 96 139 206 305 281 . Remotely . | . . . . . . . . Salvage Created 1659 | . 616 86 . 25 195 237 500 Parts 85 | . 41 11 . 4 12 11 6 Haulers Intercepted 1 | . 1 . . . . . . Recyclers Shooed 1 | . 1 . . . . . . Parts Field Recycled . | . . . . . . . . Retrieved Matter . | . . . . . . . . Parts Self-Destructed . | . . . . . . . . Prevented . | . . . . . . . . Parts Restored . | . . . . . . . . Kills | -11 -10 -10 -10 -9 -8 -7 -7 ------- Run | Yrd Mat Min Exi Min Mat Fac Was Combat Hostiles Destroyed 39 | . 14 5 . 4 7 7 2 Guns 10 | . 6 . . . 2 2 . Cannons 20 | . 6 2 . 1 5 4 2 AOE 9 | . 2 3 . 3 . 1 . Classes Destroyed 12 | . 7 . . . 2 2 1 Worker 2 | . 1 . . . . 1 . Hauler 1 | . 1 . . . . . . Recycler 1 | . 1 . . . . . . Operator 1 | . 1 . . . . . . Watcher 3 | . 2 . . . 1 . . Swarmer 14 | . 3 3 . 4 4 . . Grunt 14 | . 11 2 . . 1 . . Sentry 3 | . . . . . 1 2 . Specialist 2 | . . . . . . 2 . Hunter 1 | . . . . . 1 . . Programmer 3 | . . . . . . 3 . Compactor 2 | . . . . . . . 2 Best Kill Streak 5 | . 5 3 . 4 5 2 2 Combat Bots Only 5 | . 4 3 . 4 5 2 2 Max Kills in Single Turn 3 | . 1 3 . 2 1 1 1 Gunslinging . | . . . . . . . . Exploded 3 | . 1 3 . 2 . 1 . Melee . | . . . . . . . . Uniques/NPCs Destroyed . | . . . . . . . . Combat | -11 -10 -10 -10 -9 -8 -7 -7 -------- Run | Yrd Mat Min Exi Min Mat Fac Was Hostile Shots Fired 218 | . 52 16 . 8 15 83 44 Missed 68 | . 19 4 . 3 3 39 . Hits 150 | . 33 12 . 5 12 44 44 Melee 44 | . . . . . . . 44 Projectile 106 | . 33 12 . 5 12 44 . Critical Strikes 21 | . . . . . 1 . 20 Damage Taken 4033 | . 379 113 . 54 138 476 2873 Core 808 | . 44 . . 6 30 35 693 Absorbed by Shields . | . . . . . . . . Ignored by Resistances 7 | . . . . . 7 . . Core Remaining (%) 91 | 100 . . . 80 94 . . Volleys Fired 97 | . 46 5 . 4 12 22 8 Largest 3 | . 2 2 . 2 3 3 2 Hottest 160 | . 60 60 . 60 123 133 160 Shots Fired 214 | . 91 10 . 8 34 49 22 Gun 80 | . 43 . . . 21 13 3 Cannon 114 | . 46 9 . 4 13 26 16 Launcher 15 | . 2 1 . 4 . 5 3 Special 5 | . . . . . . 5 . Kinetic 166 | . 89 9 . 4 25 27 12 Thermal 28 | . . . . . 9 12 7 Explosive 15 | . 2 1 . 4 . 5 3 Electromagnetic . | . . . . . . . . Robot Hit Streak 22 | . 6 3 . 4 8 10 22 Robot Miss Streak 6 | . 6 3 . 1 4 3 . Penetration Max . | . . . . . . . . Secondary Targets . | . . . . . . . . Autonomous 18 | . . . . . 1 5 12 Shots Hit Robots 129 | . 46 5 . 5 25 36 12 Core Hits 75 | . 25 6 . 6 18 18 2 Critical Kills . | . . . . . . . . Critical Parts Destroyed . | . . . . . . . . Critical Strikes 7 | . 5 . . . . 2 . Blast 7 | . 5 . . . . 2 . Melee Attacks 21 | . . . . . . 12 9 Impact . | . . . . . . . . Slashing 21 | . . . . . . 12 9 Piercing . | . . . . . . . . Sneak Attacks . | . . . . . . . . Combat Hostiles . | . . . . . . . . Follow-up Attacks . | . . . . . . . . Damage Inflicted 3916 | . 895 209 . 221 538 974 1079 Guns 728 | . 293 . . . 252 183 . Cannons 2479 | . 414 77 . 37 280 668 1003 Explosions 703 | . 188 132 . 184 . 123 76 Melee . | . . . . . . . . Ramming 6 | . . . . . 6 . . Kinetic 2939 | . 707 77 . 37 429 686 1003 Thermal 268 | . . . . . 103 165 . Explosive 703 | . 188 132 . 184 . 123 76 Electromagnetic . | . . . . . . . . Impact . | . . . . . . . . Slashing . | . . . . . . . . Piercing . | . . . . . . . . Highest Corruption 46 | . . . . . . 3 46 Average Corruption 5 | . . . . . . 2 21 Corruption Purged . | . . . . . . . . Corruption Blocked . | . . . . . . . . Effects 18 | . . . . . . 9 9 Message Errors 6 | . . . . . . 3 3 Matter Fused 7 | . . . . . . 5 2 Energy Discharges 1 | . . . . . . . 1 Parts Rejected 2 | . . . . . . 1 1 Data Loss (minor) 1 | . . . . . . . 1 Weapon Failures 1 | . . . . . . . 1 Overload Shots . | . . . . . . . . Overflow Damage 163 | . 10 5 . 27 . 77 44 Projectiles 108 | . 10 . . . . 77 21 Explosions 55 | . . 5 . 27 . . 23 Melee . | . . . . . . . . Knockbacks 22 | . 3 . . . 7 12 . Impact . | . . . . . . . . Kinetic 21 | . 3 . . . 7 11 . Secondary 1 | . . . . . . 1 . Self-Inflicted Damage 159 | . . . . 12 . . 147 Shots 4 | . . . . 1 . . 3 Rammed 1 | . . . . . 1 . . Targets Rammed 1 | . . . . . 1 . . Kicked . | . . . . . . . . Crushed . | . . . . . . . . Highest Temperature 242 | . 18 18 . . 242 90 181 Average Temperature 60 | . 6 15 . . 119 37 74 Received Heat Transfer 312 | . 186 18 . . 36 72 . Siege Activations . | . . . . . . . . Martial Activations . | . . . . . . . . Shielding Activations . | . . . . . . . . Robots Disrupted . | . . . . . . . . Combat Hostiles . | . . . . . . . . Robots Corrupted . | . . . . . . . . Combat Hostiles . | . . . . . . . . Parts Fried . | . . . . . . . . Impact Corruptions . | . . . . . . . . Robots Melted . | . . . . . . . . Combat Hostiles . | . . . . . . . . Parts Melted . | . . . . . . . . Heat Transferred 518 | . . . . . 222 296 . Parts Sabotaged . | . . . . . . . . Parts Stolen . | . . . . . . . . Parts Stripped . | . . . . . . . . Power Chain Reactions . | . . . . . . . . Alert | -11 -10 -10 -10 -9 -8 -7 -7 ------- Run | Yrd Mat Min Exi Min Mat Fac Was Maximum Alert Level . | . . . . . . . . Low Security (%) 100 | 100 100 100 . 100 100 100 100 Level 1 . | . . . . . . . . Level 2 . | . . . . . . . . Level 3 . | . . . . . . . . Level 4 . | . . . . . . . . Level 5 . | . . . . . . . . High Security . | . . . . . . . . Max Security . | . . . . . . . . Peak Influence 166 | . 166 108 . 105 116 76 19 Initial 58 | . . 58 . . 3 18 19 Average 28 | . 74 41 . 17 32 13 2 Influence Increases 1093 | . 405 125 . 105 198 250 10 Destroy 0b10 Robot/C 740 | . 280 100 . 80 140 140 . Destroy 0b10 Robot/NC 45 | . 30 . . . 10 5 . Destroy Leader 188 | . 66 20 . 10 32 60 . Disable Machine 15 | . . . . . . 15 . Destroy Structure 75 | . 14 5 . 15 1 30 10 Partial Spotted 15 | . 15 . . . . . . Lose Combat Pursuer 15 | . . . . . 15 . . Influence Decreases 1093 | . 255 230 45 96 167 235 65 Entered New Map 201 | . . 92 45 . 6 22 36 Time Decay 877 | . 255 138 . 96 161 213 14 Lost Part 6 | . . . . . . . 6 Lost Ally 9 | . . . . . . . 9 Squads Dispatched 15 | . 3 . . . 3 9 . Investigation 2 | . 1 . . . . 1 . Extermination 3 | . . . . . . 3 . Reinforcement 4 | . 2 . . . . 2 . Assault . | . . . . . . . . Garrison 6 | . . . . . 3 3 . Intercept . | . . . . . . . . Searches Triggered . | . . . . . . . . Construction Impeded . | . . . . . . . . Haulers Reinforced . | . . . . . . . . Active Scanning Responses . | . . . . . . . . Cargo Convoy Interrupts 1 | . . . . . . 1 . Stealth | -11 -10 -10 -10 -9 -8 -7 -7 --------- Run | Yrd Mat Min Exi Min Mat Fac Was Distress Signals 3 | . 1 . . . 2 . . Communications Jammed . | . . . . . . . . Distress Signals . | . . . . . . . . Times Spotted 55 | . 21 4 . 4 9 8 9 Peak Tracking Total 6 | . 3 3 . 2 3 2 6 Tactical Retreats 2 | . . . . . 1 . 1 Traps | -11 -10 -10 -10 -9 -8 -7 -7 ------- Run | Yrd Mat Min Exi Min Mat Fac Was Traps Triggered 3 | . 1 . . . 1 1 . Indirectly . | . . . . . . . . Trap Hack Attempts . | . . . . . . . . Triggered . | . . . . . . . . Disarmed . | . . . . . . . . Reprogrammed . | . . . . . . . . Reused . | . . . . . . . . Traps Extracted . | . . . . . . . . Installed . | . . . . . . . . Triggered . | . . . . . . . . Machines | -11 -10 -10 -10 -9 -8 -7 -7 ---------- Run | Yrd Mat Min Exi Min Mat Fac Was Machines Disabled 1 | . . . . . . 1 . Max in Single Turn 1 | . . . . . . 1 . Machines Repaired . | . . . . . . . . Machines Dismantled . | . . . . . . . . Machines Sabotaged . | . . . . . . . . Overloaded Fab Kills . | . . . . . . . . Hacking | -11 -10 -10 -10 -9 -8 -7 -7 --------- Run | Yrd Mat Min Exi Min Mat Fac Was Machines Accessed 7 | . . . 4 . . 3 . Terminals 1 | . . . . . . 1 . Fabricators . | . . . . . . . . Repair Stations . | . . . . . . . . Recycling Units 1 | . . . . . . 1 . Scanalyzers . | . . . . . . . . Garrison Access 1 | . . . . . . 1 . Total Hacks 56 | . . . 49 . . 7 . Successful 51 | . . . 49 . . 2 . Failed 5 | . . . . . . 5 . Catastrophic 1 | . . . . . . 1 . Database Lockouts . | . . . . . . . . Manual 2 | . . . 1 . . 1 . Terminals 1 | . . . . . . 1 . Fabricators . | . . . . . . . . Repair Stations . | . . . . . . . . Recycling Units 4 | . . . . . . 4 . Scanalyzers . | . . . . . . . . Garrison Access 2 | . . . . . . 2 . Terminal Hacks 49 | . . . 49 . . . . Record 49 | . . . 49 . . . . Fabricator Hacks . | . . . . . . . . Repair Station Hacks . | . . . . . . . . Recycling Unit Hacks 2 | . . . . . . 2 . Process 1 | . . . . . . 1 . Report Inventory 1 | . . . . . . 1 . Scanalyzer . | . . . . . . . . Garrison Access Hacks . | . . . . . . . . Unauthorized Hacks . | . . . . . . . . Terminals . | . . . . . . . . Fabricators . | . . . . . . . . Repair Stations . | . . . . . . . . Recycling Units . | . . . . . . . . Scanalyzers . | . . . . . . . . Garrison Access . | . . . . . . . . Data Cores Recovered . | . . . . . . . . Used . | . . . . . . . . Hacking Detections 1 | . . . . . . 1 . Full Trace Events 1 | . . . . . . 1 . Feedback Events . | . . . . . . . . Feedback Blocked . | . . . . . . . . Robot Schematics Acquired . | . . . . . . . . Robots Built . | . . . . . . . . Authchips . | . . . . . . . . Time . | . . . . . . . . Total Robot Build Rating . | . . . . . . . . Part Schematics Acquired . | . . . . . . . . Parts Built . | . . . . . . . . Authchips . | . . . . . . . . Time . | . . . . . . . . Total Part Build Rating . | . . . . . . . . Part Studies Acquired . | . . . . . . . . Parts Repaired . | . . . . . . . . Time . | . . . . . . . . Parts Recycled . | . . . . . . . . Recycled Matter 89 | . . . . . . 89 . Retrieved Matter . | . . . . . . . . Retrieved Components . | . . . . . . . . Parts Scanalyzed . | . . . . . . . . Part Schematics Acquired . | . . . . . . . . Parts Damaged . | . . . . . . . . Bothacking | -11 -10 -10 -10 -9 -8 -7 -7 ------------ Run | Yrd Mat Min Exi Min Mat Fac Was Used RIF Installer . | . . . . . . . . Robots Hacked 4 | . . . . . . 4 . Non-combat 3 | . . . . . . 3 . Combat 1 | . . . . . . 1 . Robot Hacks Applied 5 | . . . . . . 5 . parse_system 1 | . . . . . . 1 . no_distress 3 | . . . . . . 3 . find_recycling 1 | . . . . . . 1 . Relay Couplers Released . | . . . . . . . . Fabnet Peak Effective % . | . . . . . . . . Robots Rewired . | . . . . . . . . Allies Hacked . | . . . . . . . . Hacks Repelled . | . . . . . . . . Allies | -11 -10 -10 -10 -9 -8 -7 -7 -------- Run | Yrd Mat Min Exi Min Mat Fac Was Total Allies 1 | . . . . . . . 1 Largest Group 1 | . . . . . . . 1 Highest-Rated Group 31 | . . . . . . . 31 Highest-Rated Ally 31 | . . . . . . . 31 Total Orders . | . . . . . . . . Ally Attacks 7 | . . . . . . . 7 Total Damage 63 | . . . . . . . 63 Kills . | . . . . . . . . Allies Corrupted . | . . . . . . . . Allies Melted . | . . . . . . . . Intel | -11 -10 -10 -10 -9 -8 -7 -7 ------- Run | Yrd Mat Min Exi Min Mat Fac Was Active Infowar (turns) 5061 | . 512 376 764 786 618 1869 136 Optics 5061 | . 512 376 764 786 618 1869 136 Robot Analysis Total . | . . . . . . . . Derelict Logs Recovered 1 | . . . . 1 . . . Drone Launches . | . . . . . . . . Drone Recoveries . | . . . . . . . . Exploration | -11 -10 -10 -10 -9 -8 -7 -7 ------------- Run | Yrd Mat Min Exi Min Mat Fac Was Turns Passed 5470 | 83 758 376 764 786 618 1869 216 Spaces Moved 2549 | 45 368 222 477 464 254 651 68 Core 2 | 1 . . . . . . 1 Treads 2547 | 44 368 222 477 464 254 651 67 Legs . | . . . . . . . . Wheels . | . . . . . . . . Hover . | . . . . . . . . Flight . | . . . . . . . . Fastest Speed 50 | 50 160 160 160 160 160 162 163 Average Speed 162 | 157 160 160 160 160 161 166 188 Slowest Speed 1250 | 160 160 160 160 160 330 243 1250 Overloaded Moves . | . . . . . . . . Propulsion Burnouts . | . . . . . . . . Robots Hopped . | . . . . . . . . Potential Cave-ins 12 | . . . . . . . 12 Cave-ins Triggered 3 | . . . . . . . 3 Exploration Rate (%) 45 | 4 73 36 93 81 22 16 37 Regions Visited 7 Branch Regions 3 Pre-discovered Areas 2 | . . . 1 1 . . . Known Exits Taken 1 | . . . . . 1 . . Unknown Exits Taken 5 | 1 1 1 1 1 . . . Scrap Searched 3 | . . . . 3 . . . Spaces Dug 21 | . . . . . . 12 9 Terrain Destroyed 110 | . 7 5 . 22 . 29 47 Melee 21 | . . . . . . 12 9 Projectile 2 | . . . . . . 2 . AOE 87 | . 7 5 . 22 . 15 38 Terrain Rammed . | . . . . . . . . Walls Destroyed . | . . . . . . . . Machines Disabled . | . . . . . . . . Actions | -11 -10 -10 -10 -9 -8 -7 -7 --------- Run | Yrd Mat Min Exi Min Mat Fac Was Total 3661 | 54 447 232 479 501 440 1380 128 Wait 838 | . . 5 . 28 128 640 37 Move 2543 | 44 367 221 476 463 253 651 68 Hop . | . . . . . . . . Pick Up 48 | 4 17 . 1 3 10 13 . Fast Attach 17 | 6 1 . . . 5 4 1 Attach 20 | . . . . . 9 6 5 Detach 11 | . . . . . 7 4 . Swap 28 | . 7 1 . . 6 14 . Drop 37 | . 9 . 2 3 9 14 . Fire 97 | . 46 5 . 4 12 22 8 Melee 21 | . . . . . . 12 9 Ram . | . . . . . . . . Kick . | . . . . . . . . Crush 1 | . . . . . 1 . . Escape Stasis . | . . . . . . . . Rewire . | . . . . . . . . Trap . | . . . . . . . . Miscellaneous . | . . . . . . . . Route ------- -11/Scrapyard -10/Materials (discovered 3 exits: [*Mat x2] / [*Min]) -10/Mines (discovered 3 exits: [*Mat] / *Exi / [*Sub]) -10/Exiles (discovered 2 exits: [*Min x2]) -9/Mines -8/Materials -7/Factory (discovered 2 exits: *Fac / [*Low]) -7/Waste History --------- Turn | Location | Event 19 | -11/Scrapyard | Discovered new exit (range 15) 84 | -11/Scrapyard | Entered Materials 261 | -10/Materials | Discovered new exit (range 13) 296 | -10/Materials | Discovered new exit (range 14) 304 | -10/Materials | Build established: Mutant 750 | -10/Materials | Discovered new exit (range 6) 842 | -10/Materials | Entered Mines 1068 | -10/Mines | Deemed a non-threat by the Exiles lab entrance 1069 | -10/Mines | Discovered new exit (range 5) 1114 | -10/Mines | Discovered new exit (range 6) 1166 | -10/Mines | Discovered new exit (range 13) 1218 | -10/Mines | Entered Exiles 1239 | -10/Exiles | Discovered new exit (range 15) 1262 | -10/Exiles | Met 8R-AWN 1284 | -10/Exiles | Met EX-HEX 1338 | -10/Exiles | Met EX-BIN 1361 | -10/Exiles | Aligned with FarCom system 1362 | -10/Exiles | Given EX-Vault access code 1415 | -10/Exiles | Opened EX-Vault 1423 | -10/Exiles | Found Prototype Ballistic Cannon 1480 | -10/Exiles | Warned to stay clear of 0b10 Research branches 1521 | -10/Exiles | Met EX-DEC 1536 | -10/Exiles | Learned location of Zion (-7) 1618 | -10/Exiles | Visited The Gauntlet 1963 | -10/Exiles | Discovered new exit (range 10) 1982 | -10/Exiles | Left Exiles lab with AWS/Autocannon 1982 | -10/Exiles | Entered Mines 2075 | -9/Mines | Learned location of Storage (-9) 2372 | -9/Mines | Learned Materials interactive machine intel 2731 | -9/Mines | Discovered new exit (range 13) 2768 | -9/Mines | Entered Materials 2768 | -8/Materials | Evolved 4 slots: Propulsion x2, Utility x1, Weapon x1 2769 | -8/Materials | Loaded intel: 19 interactive machine locations 2772 | -8/Materials | Identified AWS/Autocannon 3024 | -8/Materials | Garrison activated, responded to threat 3073 | -8/Materials | Build established: Scavenger-Skirmisher 3341 | -8/Materials | Discovered new exit (range 8) 3385 | -8/Materials | Identified exit to Factory 3386 | -8/Materials | Entered Factory 3386 | -7/Factory | Evolved 2 slots: Utility x2 3510 | -7/Factory | Build established: Skirmisher 4008 | -7/Factory | Build established: Hacker-Mutant 4412 | -7/Factory | Garrison activated, responded to threat 4814 | -7/Factory | Discovered new exit (range 7) 4838 | -7/Factory | Cargo convoy interrupted 4899 | -7/Factory | Discovered new exit (range 8) 4987 | -7/Factory | Identified exit to Factory 5195 | -7/Factory | Build established: Hacker-Skirmisher 5255 | -7/Factory | Manually triggered Chute Trap 5255 | -7/Factory | Sucked down chute 5255 | -7/Factory | Entered Waste 5256 | -7/Waste | Met a frightened Derelict 5269 | -7/Waste | Spotted C-40 Crusher 5270 | -7/Waste | EMP discharged 5270 | -7/Waste | System corruption reached 10% 5308 | -7/Waste | Spotted C-40 Crusher 5330 | -7/Waste | Spotted C-40 Crusher 5370 | -7/Waste | EMP discharged 5378 | -7/Waste | Crushed by falling debris 5382 | -7/Waste | Crushed by falling debris 5382 | -7/Waste | System corruption reached 30% 5391 | -7/Waste | Crushed by falling debris 5409 | -7/Waste | Crushed by Compactor (0 parts destroyed, 1 dropped) 5416 | -7/Waste | Spotted C-40 Crusher 5421 | -7/Waste | Spotted C-40 Crusher 5424 | -7/Waste | Spotted C-40 Crusher 5427 | -7/Waste | Crushed by Compactor (1 part destroyed, 1 dropped) 5430 | -7/Waste | Crushed by Compactor (1 part destroyed) 5433 | -7/Waste | Crushed by Compactor (0 parts destroyed, 1 dropped) 5437 | -7/Waste | Destroyed C-40 Crusher 5448 | -7/Waste | Destroyed C-40 Crusher 5464 | -7/Waste | Core integrity fell below 50% 5469 | -7/Waste | Core integrity fell below 20% 5470 | -7/Waste | EMP discharged 5471 | -7/Waste | Destroyed by C-40 Crusher with Compactor Last Messages --------------- 285 Matter crushed. Damper Plating crushed. 1 Matter crushed. Hvy. Treads crushed. The unstable cave ceiling collapses. C-40 Crusher crushed by falling debris. System corrupted: Energy discharge (-36). Destroyed Imp. Cooling System. Damper Plating crushed. Critical hit (Destroy). Hrd. Heavy Armor Plating destroyed. C-40 Crusher destroyed. The unstable cave ceiling collapses. 215 Matter crushed. Critical hit (Destroy). AWS/Autocannon destroyed. ALERT: Foreign system detected. Charging EMP. 11 Matter fried beyond repair. System corrupted (+9). 8 Matter fried beyond repair. Map ----- +----------------------------------------------------+ | ?????????????????????????????????????????????????? | | ?????????????????????????????????????????????????? | | ?????????????##########??????????????????????????? | | ?????????????# ]#??????????????????????????? | | ?????????????# #??????????????????????????? | | ?????????????# #??????????????????????????? | | ?????????????# #??????????????????????????? | | ?????????????# #??????????????????????????? | | ?????????????# #??????????????????????????? | | ?????????????# [ #??????????????????????????? | | ?????????????# #??????????????????????????? | | ?????????????### ###??????????????????????????? | | ???????????????# # #??????????????????????????? | | ???????????????# # #??????????????????????????? | | ???????????????# # #??????????????????????????? | | ?????????????### # #??????????????????????????? | | ?????????????# # ##?????????????????????????? | | ?????????????# ## ###???????????????????????? | | ?????????????# #???????????????????????? | | ?????????????# # ##??????????????????????? | | ?????????????### # #??????????????????????? | | ???????????????# # #??????????????????????? | | ???????????????# # #???? #????????????????? | | ???????????????# # *! #?? #????????????????? | | ?????????????### # CC### #????????????????? | | ?????????????# CC@CC #????????????????? | | ?????????????# CCCCCC #????????????????? | | ?????????????# CCCC #????????????????? | | ?????????????# #????????????????? | | ?????????????### ######## #????????????????? | | ?############??# #??????? #????????????????? | | ?# #??# #???????? #????????????????? | | ?# | #??# #???????? #????????????????? | | ?# #### #????????? #????????????????? | | ?# #?????????? ????????????????? | | ?# #?????????? ???????????????? | | ?# = ! #??????????? ??????????????? | | ?# = #???????????? ??????????????? | | ?# [ #### #????????????????????????????? | | ?# #??# ! #????????????????????????????? | | ?# #??# #????????????????????????????? | | ?############??# #????????????????????????????? | | ?????????????### ###??????????????????????????? | | ?????????????# #??????????????????????????? | | ?????????????# #??????????????????????????? | | ?????????????# #??????????????????????????? | | ?????????????# #??????????????????????????? | | ?????????????# #??????????????????????????? | | ?????????????# #??????????????????????????? | | ?????????????# #??????????????????????????? | +----------------------------------------------------+ Best States ------------- Heat Dissipation 45 Energy Generation 16 Energy Capacity 290 Matter Stores 300 Matter Capacity 300 Sight Range 20 Terrain Scan Density 10 Armor Coverage 600 Resistance: KI 20 Evasion (%) 40 Recoil Reduction 4 Offensive Hacking 20 Item Schematics ----------------- None Robot Schematics ------------------ None Fabricated ------------ Nothing Repaired ---------- Nothing Studied --------- None Alien Tech Used ----------------- None Achievements -------------- Drive-By Junior Dev Unlikely Earthworm Wheee! Challenges ------------ None Game ------ Seed CompositeDirtyMiniperforator Manual? 0 Play Time 01:31:33 Cumulative 24.4 hours Start 2026.09.12 @ 05:41:40 End 2026.09.12 @ 22:26:08 Sessions 5 Manual Loads 0 Difficulty Rogue Special Mode None Game No. 9 Rogue 9 Adventurer 0 Explorer 0 Win Type - Total 0 Types 0/0/0/0/0/0/0/0/0/0 Lore% 16 Gallery% 19 Achievement% 18 Wizard Run 0 Options --------- Layout 1 ASCII 0 Keyboard 0 Movement Numpad Keybinds 0 Fullscreen 2 Font 32/SmallcapsGlow Map View 50x35 Zoom Use 0% Tactical HUD 0 Map Filters NONE Filters NONE Steam 1 RUN: 90d3c7a5-82a6-4cc9-bf52-7e85555504ed